[Event "Live Chess"]
[Site "Chess.com"]
[Date "2023.05.21"]
[Round "-"]
[White "Mugzwang"]
[Black "sup3rm0nk3y"]
[Result "0-1"]
[WhiteElo "1532"]
[BlackElo "1333"]
[TimeControl "300"]
[EndTime "4:05:19 PDT"]
[Termination "sup3rm0nk3y won by resignation"]

1. Nf3 {[%clk 0:04:57.4]} 1... b6 {[%clk 0:04:54.7]} 2. e4 {[%clk 0:04:50]} 2...
Bb7 {[%clk 0:04:53.9]} 3. Qe2 {[%clk 0:04:47.5]} 3... d6 {[%clk 0:04:49.5]} 4.
d4 {[%clk 0:04:46.9]} 4... Nd7 {[%clk 0:04:48.1]} 5. Nc3 {[%clk 0:04:46.2]} 5...
e5 {[%clk 0:04:45.7]} 6. d5 {[%clk 0:04:44.7]} 6... Nc5 {[%clk 0:04:38.6]} 7. b4
{[%clk 0:04:34]} 7... Nd7 {[%clk 0:04:36.9]} 8. g3 {[%clk 0:04:22.7]} 8... a5
{[%clk 0:04:34.1]} 9. b5 {[%clk 0:04:13.6]} 9... Nc5 {[%clk 0:04:28.7]} 10. Bg2
{[%clk 0:04:04.7]} 10... Nf6 {[%clk 0:04:25.5]} 11. O-O {[%clk 0:04:01.4]} 11...
Be7 {[%clk 0:04:23.2]} 12. Bg5 {[%clk 0:03:47]} 12... O-O {[%clk 0:04:21.4]} 13.
Bxf6 {[%clk 0:03:45.8]} 13... Bxf6 {[%clk 0:04:20.8]} 14. a4 {[%clk 0:03:44]}
14... Qe7 {[%clk 0:03:57.9]} 15. Nd2 {[%clk 0:03:34.6]} 15... Bg5 {[%clk
0:03:48.2]} 16. Nb3 {[%clk 0:03:18.5]} 16... f5 {[%clk 0:03:40.2]} 17. Nxc5
{[%clk 0:03:15.3]} 17... dxc5 {[%clk 0:03:39.3]} 18. f3 {[%clk 0:02:33.4]} 18...
f4 {[%clk 0:03:32.5]} 19. g4 {[%clk 0:02:28.2]} 19... Kf7 {[%clk 0:03:00.7]} 20.
Qc4 {[%clk 0:02:18.2]} 20... Ke8 {[%clk 0:02:54]} 21. Rfd1 {[%clk 0:02:10]}
21... Kd7 {[%clk 0:02:37.9]} 22. Rd2 {[%clk 0:02:02.5]} 22... Rad8 {[%clk
0:02:35.7]} 23. Rad1 {[%clk 0:02:01.7]} 23... Kc8 {[%clk 0:02:33.8]} 24. Qe2
{[%clk 0:01:32.9]} 24... Rh8 {[%clk 0:02:31.1]} 25. Rd3 {[%clk 0:01:28.9]} 25...
h5 {[%clk 0:02:28.5]} 26. Qd2 {[%clk 0:01:03.2]} 26... hxg4 {[%clk 0:02:24.2]}
27. fxg4 {[%clk 0:01:01.8]} 27... f3 {[%clk 0:02:18.5]} 28. Qf2 {[%clk
0:00:55.2]} 28... fxg2 {[%clk 0:02:10.2]} 29. Qxg2 {[%clk 0:00:54.5]} 29... Bf4
{[%clk 0:02:00.7]} 30. h3 {[%clk 0:00:49]} 30... Rh6 {[%clk 0:01:51.3]} 31. Ne2
{[%clk 0:00:38.7]} 31... Bg5 {[%clk 0:01:42.1]} 32. Ng3 {[%clk 0:00:37]} 32...
g6 {[%clk 0:01:30.9]} 33. Rf1 {[%clk 0:00:24.5]} 33... Rdh8 {[%clk 0:01:28.5]}
34. Rdf3 {[%clk 0:00:21.2]} 34... Kb8 {[%clk 0:01:19.4]} 35. Rf7 {[%clk
0:00:18.5]} 35... Qd8 {[%clk 0:01:13.1]} 36. R7f2 {[%clk 0:00:13.3]} 36... Rxh3
{[%clk 0:01:09.4]} 37. Qxh3 {[%clk 0:00:11.1]} 37... Rxh3 {[%clk 0:01:07.7]} 38.
Rf8 {[%clk 0:00:10.7]} 38... Qxf8 {[%clk 0:01:04.2]} 39. Rxf8+ {[%clk
0:00:09.6]} 39... Bc8 {[%clk 0:01:02.9]} 40. Rg8 {[%clk 0:00:08.8]} 40... Rxg3+
{[%clk 0:01:00.8]} 41. Kf2 {[%clk 0:00:07.1]} 41... Rxg4 {[%clk 0:00:59.3]} 42.
Rxg6 {[%clk 0:00:05.9]} 42... Be3+ {[%clk 0:00:58.3]} 43. Kf3 {[%clk 0:00:04.8]}
43... Rxg6 {[%clk 0:00:57.5]} 44. Kxe3 {[%clk 0:00:03]} 44... Rg2 {[%clk
0:00:56.3]} 0-1

[Event "Live Chess"]
[Site "Chess.com"]
[Date "2023.05.21"]
[Round "-"]
[White "ItsNot_Jasper"]
[Black "Brooms1989"]
[Result "1/2-1/2"]
[WhiteElo "1378"]
[BlackElo "1137"]
[TimeControl "300"]
[EndTime "4:05:26 PDT"]
[Termination "Game drawn by repetition"]

1. d4 {[%clk 0:04:59.5]} 1... Nf6 {[%clk 0:04:58]} 2. c4 {[%clk 0:04:58.5]} 2...
g6 {[%clk 0:04:56.6]} 3. Nc3 {[%clk 0:04:57.3]} 3... Bg7 {[%clk 0:04:55.8]} 4.
e4 {[%clk 0:04:56.6]} 4... d6 {[%clk 0:04:54.6]} 5. f4 {[%clk 0:04:55.8]} 5...
Bg4 {[%clk 0:04:42.9]} 6. Be2 {[%clk 0:04:52.1]} 6... Bxe2 {[%clk 0:04:41.2]} 7.
Qxe2 {[%clk 0:04:52]} 7... O-O {[%clk 0:04:35.9]} 8. Nf3 {[%clk 0:04:49.7]} 8...
Re8 {[%clk 0:04:31.7]} 9. h3 {[%clk 0:04:48.2]} 9... e5 {[%clk 0:04:29.5]} 10.
fxe5 {[%clk 0:04:47.6]} 10... dxe5 {[%clk 0:04:28.9]} 11. d5 {[%clk 0:04:47.2]}
11... Nbd7 {[%clk 0:04:20.4]} 12. Bg5 {[%clk 0:04:43.5]} 12... c6 {[%clk
0:04:09.7]} 13. Qe3 {[%clk 0:04:37.5]} 13... cxd5 {[%clk 0:04:05.3]} 14. cxd5
{[%clk 0:04:37.4]} 14... Qb6 {[%clk 0:03:49.5]} 15. Qxb6 {[%clk 0:04:26]} 15...
axb6 {[%clk 0:03:49.4]} 16. Rd1 {[%clk 0:04:18.6]} 16... h6 {[%clk 0:03:40.9]}
17. Be3 {[%clk 0:04:15.9]} 17... Rec8 {[%clk 0:03:32.3]} 18. O-O {[%clk
0:04:11.2]} 18... b5 {[%clk 0:03:22.9]} 19. a3 {[%clk 0:04:00.7]} 19... Rc4
{[%clk 0:03:03.2]} 20. Nd2 {[%clk 0:03:44.9]} 20... Rcc8 {[%clk 0:02:52]} 21.
Nxb5 {[%clk 0:03:42.6]} 21... Ra6 {[%clk 0:02:38.6]} 22. d6 {[%clk 0:03:39.4]}
22... Bf8 {[%clk 0:02:33.5]} 23. Nb3 {[%clk 0:03:29.6]} 23... Nxe4 {[%clk
0:02:20.9]} 24. Rf3 {[%clk 0:03:00.4]} 24... Nxd6 {[%clk 0:02:10.7]} 25. Nxd6
{[%clk 0:02:59]} 25... Rxd6 {[%clk 0:02:09.5]} 26. Rxd6 {[%clk 0:02:57]} 26...
Bxd6 {[%clk 0:02:09.4]} 27. Bxh6 {[%clk 0:02:53.1]} 27... Bf8 {[%clk 0:02:02.9]}
28. Bxf8 {[%clk 0:02:51.8]} 28... Kxf8 {[%clk 0:02:02.8]} 29. Nd2 {[%clk
0:02:48.9]} 29... Rc2 {[%clk 0:01:56.5]} 30. Ne4 {[%clk 0:02:41.8]} 30... f6
{[%clk 0:01:40.7]} 31. Nxf6 {[%clk 0:02:39.4]} 31... Nxf6 {[%clk 0:01:39.8]} 32.
Rxf6+ {[%clk 0:02:39.1]} 32... Kg7 {[%clk 0:01:39.3]} 33. Rb6 {[%clk 0:02:38.4]}
33... e4 {[%clk 0:01:32.6]} 34. Rxb7+ {[%clk 0:02:37]} 34... Kf6 {[%clk
0:01:31]} 35. Kf1 {[%clk 0:02:36.1]} 35... Kf5 {[%clk 0:01:28.2]} 36. Ke1 {[%clk
0:02:28.5]} 36... Kf4 {[%clk 0:01:25.4]} 37. Kf1 {[%clk 0:02:27.2]} 37... Kg3
{[%clk 0:01:21.1]} 38. Rb3+ {[%clk 0:02:25.2]} 38... Kf4 {[%clk 0:01:19.1]} 39.
g3+ {[%clk 0:02:23.2]} 39... Ke5 {[%clk 0:01:17]} 40. Ke1 {[%clk 0:02:15.2]}
40... Kf5 {[%clk 0:01:07.8]} 41. Kd1 {[%clk 0:02:13.5]} 41... Rh2 {[%clk
0:01:03.8]} 42. h4 {[%clk 0:02:11.3]} 42... Rh3 {[%clk 0:01:00.1]} 43. Re3
{[%clk 0:02:09.8]} 43... Rh2 {[%clk 0:00:53.8]} 44. b4 {[%clk 0:02:08.1]} 44...
Rh1+ {[%clk 0:00:41.8]} 45. Kd2 {[%clk 0:02:06.3]} 45... Rh2+ {[%clk 0:00:41]}
46. Re2 {[%clk 0:02:05.6]} 46... Rh3 {[%clk 0:00:32.9]} 47. b5 {[%clk
0:01:59.4]} 47... Rxg3 {[%clk 0:00:31]} 48. b6 {[%clk 0:01:57.6]} 48... Rb3
{[%clk 0:00:29.4]} 49. Rf2+ {[%clk 0:01:47.3]} 49... Ke5 {[%clk 0:00:26.2]} 50.
b7 {[%clk 0:01:42.9]} 50... Rxb7 {[%clk 0:00:24.3]} 51. Rg2 {[%clk 0:01:42.4]}
51... Kf5 {[%clk 0:00:22]} 52. Ke3 {[%clk 0:01:40.7]} 52... Rb3+ {[%clk
0:00:20.4]} 53. Kf2 {[%clk 0:01:39.2]} 53... Rxa3 {[%clk 0:00:18.9]} 54. Kf1
{[%clk 0:01:37.9]} 54... Ra1+ {[%clk 0:00:17.3]} 55. Kf2 {[%clk 0:01:35.6]}
55... Ra2+ {[%clk 0:00:16.9]} 56. Kf1 {[%clk 0:01:35.1]} 56... Rxg2 {[%clk
0:00:16.3]} 57. Kxg2 {[%clk 0:01:35]} 57... g5 {[%clk 0:00:15.3]} 58. hxg5
{[%clk 0:01:34.1]} 58... Kxg5 {[%clk 0:00:15.2]} 59. Kg3 {[%clk 0:01:33.7]}
59... Kf5 {[%clk 0:00:14.4]} 60. Kf2 {[%clk 0:01:33.3]} 60... Kf4 {[%clk
0:00:13.7]} 61. Ke2 {[%clk 0:01:32.6]} 61... e3 {[%clk 0:00:12.5]} 62. Ke1
{[%clk 0:01:30.9]} 62... Kf3 {[%clk 0:00:11.9]} 63. Kf1 {[%clk 0:01:30.5]} 63...
Ke4 {[%clk 0:00:11.1]} 64. Ke2 {[%clk 0:01:29.7]} 64... Kf4 {[%clk 0:00:10.7]}
65. Kf1 {[%clk 0:01:28.8]} 65... Kf3 {[%clk 0:00:10.1]} 66. Ke1 {[%clk
0:01:28.2]} 66... Ke4 {[%clk 0:00:08.9]} 67. Ke2 {[%clk 0:01:27.6]} 67... Kf4
{[%clk 0:00:08.2]} 1/2-1/2

[Event "Live Chess"]
[Site "Chess.com"]
[Date "2023.05.21"]
[Round "-"]
[White "Conradical12"]
[Black "Misha145Chess"]
[Result "1-0"]
[WhiteElo "1567"]
[BlackElo "622"]
[TimeControl "300"]
[EndTime "4:05:29 PDT"]
[Termination "Conradical12 won by checkmate"]

1. e4 {[%clk 0:04:58.6]} 1... d5 {[%clk 0:04:57.6]} 2. exd5 {[%clk 0:04:57.6]}
2... Nf6 {[%clk 0:04:56.9]} 3. Nc3 {[%clk 0:04:57.4]} 3... e6 {[%clk 0:04:54.8]}
4. d6 {[%clk 0:04:55.9]} 4... Bxd6 {[%clk 0:04:53.3]} 5. Nf3 {[%clk 0:04:55.8]}
5... e5 {[%clk 0:04:51.7]} 6. Bc4 {[%clk 0:04:53.6]} 6... O-O {[%clk 0:04:49.7]}
7. O-O {[%clk 0:04:52.4]} 7... Bf5 {[%clk 0:04:47.5]} 8. d3 {[%clk 0:04:49.5]}
8... e4 {[%clk 0:04:45.9]} 9. dxe4 {[%clk 0:04:48.2]} 9... Bxe4 {[%clk
0:04:44.5]} 10. Nxe4 {[%clk 0:04:46.9]} 10... Nxe4 {[%clk 0:04:43.7]} 11. Qd5
{[%clk 0:04:46.4]} 11... Nf6 {[%clk 0:04:41.4]} 12. Qxb7 {[%clk 0:04:44.6]}
12... Re8 {[%clk 0:04:12]} 13. Qxa8 {[%clk 0:04:38.4]} 13... Re4 {[%clk
0:04:09]} 14. Bd3 {[%clk 0:04:25.3]} 14... Rf4 {[%clk 0:04:04.4]} 15. Bxf4
{[%clk 0:04:23.2]} 15... Bxf4 {[%clk 0:04:02.7]} 16. Rad1 {[%clk 0:04:21.1]}
16... Qe7 {[%clk 0:03:54.6]} 17. Rfe1 {[%clk 0:04:19]} 17... Qb4 {[%clk
0:03:49.1]} 18. c3 {[%clk 0:04:12]} 18... Qc5 {[%clk 0:03:44]} 19. b4 {[%clk
0:04:04.7]} 19... Qf8 {[%clk 0:03:42.7]} 20. Ne5 {[%clk 0:03:57.7]} 20... g5
{[%clk 0:03:14.9]} 21. Bf5 {[%clk 0:03:47.6]} 21... Qh6 {[%clk 0:03:07.9]} 22.
Qxb8+ {[%clk 0:03:41]} 22... Kg7 {[%clk 0:03:02.6]} 23. g3 {[%clk 0:03:36.4]}
23... Bxe5 {[%clk 0:02:46.4]} 24. Rxe5 {[%clk 0:03:34.3]} 24... Qh5 {[%clk
0:02:34.4]} 25. Rde1 {[%clk 0:03:31.1]} 25... Ng4 {[%clk 0:02:31]} 26. Bxg4
{[%clk 0:03:28.6]} 26... Qxg4 {[%clk 0:02:30.3]} 27. Qd8 {[%clk 0:03:27.1]}
27... h5 {[%clk 0:02:22.6]} 28. Rxg5+ {[%clk 0:03:25.4]} 28... Qxg5 {[%clk
0:02:21.5]} 29. Qxg5+ {[%clk 0:03:25.3]} 29... Kh7 {[%clk 0:02:19.9]} 30. Re7
{[%clk 0:03:24]} 30... h4 {[%clk 0:02:17.5]} 31. Rxf7+ {[%clk 0:03:22.8]} 31...
Kh8 {[%clk 0:02:16]} 32. Qg7# {[%clk 0:03:22.7]} 1-0

[Event "Live Chess"]
[Site "Chess.com"]
[Date "2023.05.21"]
[Round "-"]
[White "Vitalii18a"]
[Black "WilliWeisswurst"]
[Result "0-1"]
[WhiteElo "1145"]
[BlackElo "1779"]
[TimeControl "300"]
[EndTime "4:05:39 PDT"]
[Termination "WilliWeisswurst won on time"]

1. e4 {[%clk 0:04:57.3]} 1... c5 {[%clk 0:04:59]} 2. c3 {[%clk 0:04:54.2]} 2...
d6 {[%clk 0:04:58.2]} 3. Bd3 {[%clk 0:04:50.2]} 3... e6 {[%clk 0:04:54.6]} 4.
Nf3 {[%clk 0:04:48.9]} 4... Nc6 {[%clk 0:04:53.8]} 5. Bc2 {[%clk 0:04:44.5]}
5... Nf6 {[%clk 0:04:51.6]} 6. O-O {[%clk 0:04:40.8]} 6... Be7 {[%clk
0:04:50.7]} 7. Re1 {[%clk 0:04:39.6]} 7... O-O {[%clk 0:04:50.3]} 8. d4 {[%clk
0:04:38.1]} 8... cxd4 {[%clk 0:04:49.4]} 9. cxd4 {[%clk 0:04:37.1]} 9... Nb4
{[%clk 0:04:43.7]} 10. Bb3 {[%clk 0:04:32.2]} 10... h6 {[%clk 0:04:31.4]} 11. a3
{[%clk 0:04:30.5]} 11... Nc6 {[%clk 0:04:29]} 12. d5 {[%clk 0:04:19.6]} 12...
exd5 {[%clk 0:04:27.2]} 13. exd5 {[%clk 0:04:18.3]} 13... Na5 {[%clk 0:04:14.1]}
14. Bc2 {[%clk 0:04:14.8]} 14... Re8 {[%clk 0:04:06.3]} 15. h3 {[%clk
0:03:57.4]} 15... b5 {[%clk 0:03:55.9]} 16. Nh2 {[%clk 0:03:54.1]} 16... Bb7
{[%clk 0:03:47.1]} 17. Nc3 {[%clk 0:03:48.4]} 17... Rc8 {[%clk 0:03:39.2]} 18.
Qf3 {[%clk 0:03:40.6]} 18... Bf8 {[%clk 0:03:24.7]} 19. Qg3 {[%clk 0:03:23.6]}
19... Rxe1+ {[%clk 0:03:19.8]} 20. Nf1 {[%clk 0:03:20.3]} 20... Rxc1 {[%clk
0:02:54.7]} 21. Rxc1 {[%clk 0:03:13]} 21... Nxd5 {[%clk 0:02:50.5]} 22. Nxb5
{[%clk 0:03:10.8]} 22... Ba6 {[%clk 0:02:13.1]} 23. Qd3 {[%clk 0:03:04.7]} 23...
Nf6 {[%clk 0:02:11.6]} 24. a4 {[%clk 0:02:56.6]} 24... d5 {[%clk 0:01:55]} 25.
Ng3 {[%clk 0:02:53]} 25... Bxb5 {[%clk 0:01:42.7]} 26. axb5 {[%clk 0:02:51]}
26... Bc5 {[%clk 0:01:29.2]} 27. Nh5 {[%clk 0:02:48.2]} 27... Ne4 {[%clk
0:01:28.3]} 28. Kh2 {[%clk 0:02:25.7]} 28... Qd6+ {[%clk 0:01:25]} 29. g3 {[%clk
0:02:22.6]} 29... Bxf2 {[%clk 0:01:18.7]} 30. Rf1 {[%clk 0:02:04.4]} 30... Qc5
{[%clk 0:00:44.6]} 31. Bb1 {[%clk 0:01:38]} 31... Nc4 {[%clk 0:00:32.4]} 32. Qf3
{[%clk 0:01:25.8]} 32... Ne5 {[%clk 0:00:24.1]} 33. Qf4 {[%clk 0:01:16.1]} 33...
Ng6 {[%clk 0:00:22.2]} 34. Qf5 {[%clk 0:00:59.4]} 34... Qxb5 {[%clk 0:00:21.3]}
35. Bxe4 {[%clk 0:00:57.7]} 35... Qxf1 {[%clk 0:00:19.7]} 36. Qxc8+ {[%clk
0:00:51.2]} 36... Kh7 {[%clk 0:00:19]} 37. h4 {[%clk 0:00:18.2]} 37... Bg1+
{[%clk 0:00:18.1]} 38. Kh1 {[%clk 0:00:15.9]} 38... Bd4+ {[%clk 0:00:15.8]} 39.
Kh2 {[%clk 0:00:14.3]} 39... Qg1+ {[%clk 0:00:15]} 40. Kh3 {[%clk 0:00:12.7]}
40... Qf1+ {[%clk 0:00:14.4]} 41. Kh2 {[%clk 0:00:11.3]} 41... Qg1+ {[%clk
0:00:13.3]} 42. Kh3 {[%clk 0:00:10.3]} 42... Qf2 {[%clk 0:00:12.2]} 43. Qe8
{[%clk 0:00:02.8]} 43... Bf6 {[%clk 0:00:10.3]} 44. Nxf6+ {[%clk 0:00:01.2]}
44... gxf6 {[%clk 0:00:09.7]} 0-1

[Event "Live Chess"]
[Site "Chess.com"]
[Date "2023.05.21"]
[Round "-"]
[White "HadesLearmonth"]
[Black "sanjesh_ananda"]
[Result "0-1"]
[WhiteElo "1189"]
[BlackElo "1243"]
[TimeControl "300"]
[EndTime "4:05:52 PDT"]
[Termination "sanjesh_ananda won by resignation"]

1. e4 {[%clk 0:04:54.5]} 1... e5 {[%clk 0:04:58.6]} 2. Nf3 {[%clk 0:04:52.6]}
2... Nc6 {[%clk 0:04:57.7]} 3. Bb5 {[%clk 0:04:50.7]} 3... Nf6 {[%clk
0:04:56.2]} 4. c3 {[%clk 0:04:45.2]} 4... Be7 {[%clk 0:04:50.4]} 5. d4 {[%clk
0:04:43.5]} 5... exd4 {[%clk 0:04:36.8]} 6. cxd4 {[%clk 0:04:41.6]} 6... Nxe4
{[%clk 0:04:30.3]} 7. Qe2 {[%clk 0:04:39.7]} 7... Nd6 {[%clk 0:04:20.9]} 8. Bxc6
{[%clk 0:04:32.2]} 8... dxc6 {[%clk 0:04:08.5]} 9. O-O {[%clk 0:04:25.9]} 9...
O-O {[%clk 0:04:05.3]} 10. Nc3 {[%clk 0:04:21.6]} 10... Bg4 {[%clk 0:04:02]} 11.
Ne4 {[%clk 0:04:13.5]} 11... Nf5 {[%clk 0:03:12]} 12. Neg5 {[%clk 0:03:53]}
12... Bxg5 {[%clk 0:02:02.7]} 13. Bxg5 {[%clk 0:03:36.1]} 13... Qxg5 {[%clk
0:01:59.6]} 14. Nxg5 {[%clk 0:03:23.9]} 14... Bxe2 {[%clk 0:01:58.1]} 15. Rfe1
{[%clk 0:03:21.8]} 15... Bc4 {[%clk 0:01:42.1]} 16. b3 {[%clk 0:03:17.5]} 16...
Bd5 {[%clk 0:01:24.6]} 17. Re5 {[%clk 0:03:06]} 17... Nxd4 {[%clk 0:01:18.8]}
18. Rd1 {[%clk 0:02:58.5]} 18... Nc2 {[%clk 0:01:03.3]} 19. Rd3 {[%clk
0:02:52.3]} 19... f6 {[%clk 0:00:59.2]} 20. Rexd5 {[%clk 0:02:40.2]} 20... cxd5
{[%clk 0:00:55.9]} 21. Rxd5 {[%clk 0:02:40.1]} 21... fxg5 {[%clk 0:00:54.6]} 22.
Rxg5 {[%clk 0:02:35.2]} 22... Rae8 {[%clk 0:00:50]} 23. h3 {[%clk 0:02:31.6]}
23... Re2 {[%clk 0:00:44.2]} 0-1

[Event "Live Chess"]
[Site "Chess.com"]
[Date "2023.05.21"]
[Round "-"]
[White "misha464"]
[Black "MarkLim1"]
[Result "0-1"]
[WhiteElo "753"]
[BlackElo "1684"]
[TimeControl "300"]
[EndTime "4:05:55 PDT"]
[Termination "MarkLim1 won by resignation"]

1. e4 {[%clk 0:04:58.5]} 1... e6 {[%clk 0:04:59.1]} 2. Nf3 {[%clk 0:04:57.3]}
2... d5 {[%clk 0:04:58.4]} 3. Nc3 {[%clk 0:04:56.9]} 3... Nf6 {[%clk 0:04:56.9]}
4. exd5 {[%clk 0:04:56.1]} 4... exd5 {[%clk 0:04:56.1]} 5. Qe2+ {[%clk
0:04:54.7]} 5... Be7 {[%clk 0:04:55]} 6. d3 {[%clk 0:04:52.2]} 6... O-O {[%clk
0:04:53.1]} 7. Bg5 {[%clk 0:04:51.4]} 7... Re8 {[%clk 0:04:52.5]} 8. Qd2 {[%clk
0:04:49.4]} 8... d4 {[%clk 0:04:49.7]} 9. Ne4 {[%clk 0:04:43.8]} 9... Nxe4
{[%clk 0:04:46.9]} 10. Bxe7 {[%clk 0:04:43]} 10... Nxd2 {[%clk 0:04:42.1]} 11.
Kxd2 {[%clk 0:04:39.3]} 11... Rxe7 {[%clk 0:04:38.6]} 0-1

[Event "Live Chess"]
[Site "Chess.com"]
[Date "2023.05.21"]
[Round "-"]
[White "chrisbradgate"]
[Black "Crowded_House"]
[Result "0-1"]
[WhiteElo "873"]
[BlackElo "1635"]
[TimeControl "300"]
[EndTime "4:06:01 PDT"]
[Termination "Crowded_House won on time"]

1. d4 {[%clk 0:04:58.3]} 1... e6 {[%clk 0:04:59]} 2. Bf4 {[%clk 0:04:52.9]} 2...
d5 {[%clk 0:04:58.1]} 3. e3 {[%clk 0:04:50.7]} 3... c5 {[%clk 0:04:56.6]} 4. c3
{[%clk 0:04:49.7]} 4... Nc6 {[%clk 0:04:54.9]} 5. Bd3 {[%clk 0:04:47.3]} 5...
Qb6 {[%clk 0:04:51.2]} 6. b3 {[%clk 0:04:44.9]} 6... Nge7 {[%clk 0:04:45.2]} 7.
Nd2 {[%clk 0:04:43.9]} 7... Ng6 {[%clk 0:04:43.7]} 8. Bg3 {[%clk 0:04:37.7]}
8... Be7 {[%clk 0:04:37.1]} 9. Ngf3 {[%clk 0:04:36.5]} 9... O-O {[%clk
0:04:35.1]} 10. O-O {[%clk 0:04:35.5]} 10... Bf6 {[%clk 0:04:34.1]} 11. h4
{[%clk 0:04:14.5]} 11... cxd4 {[%clk 0:04:26]} 12. exd4 {[%clk 0:04:11.5]} 12...
Bd7 {[%clk 0:04:18.6]} 13. h5 {[%clk 0:04:09.9]} 13... Nge7 {[%clk 0:04:16.4]}
14. Ne5 {[%clk 0:03:55.5]} 14... Nxe5 {[%clk 0:03:57.7]} 15. dxe5 {[%clk
0:03:49.5]} 15... Bg5 {[%clk 0:03:49.2]} 16. Nf3 {[%clk 0:03:35.2]} 16... Bh6
{[%clk 0:03:45.7]} 17. Bh2 {[%clk 0:03:24.2]} 17... Nf5 {[%clk 0:03:44]} 18. g4
{[%clk 0:03:18.6]} 18... Ne7 {[%clk 0:03:28]} 19. g5 {[%clk 0:03:13]} 19... Bxg5
{[%clk 0:03:27.1]} 20. Nxg5 {[%clk 0:03:11]} 20... h6 {[%clk 0:03:26.8]} 21. Nf3
{[%clk 0:03:08]} 21... Nc6 {[%clk 0:03:17.8]} 22. Nd4 {[%clk 0:03:03.1]} 22...
Nxe5 {[%clk 0:03:13.8]} 23. Bxe5 {[%clk 0:02:57.5]} 23... f6 {[%clk 0:03:08.7]}
24. Bg3 {[%clk 0:02:49]} 24... e5 {[%clk 0:03:07]} 25. Nc2 {[%clk 0:02:38.5]}
25... Bh3 {[%clk 0:03:05.1]} 26. Re1 {[%clk 0:02:23.4]} 26... d4 {[%clk
0:03:04.2]} 27. Kh2 {[%clk 0:02:14.8]} 27... Bd7 {[%clk 0:02:56.9]} 28. Rg1
{[%clk 0:02:09.2]} 28... dxc3 {[%clk 0:02:51.7]} 29. f4 {[%clk 0:01:45.4]} 29...
exf4 {[%clk 0:02:42.1]} 30. Bxf4 {[%clk 0:01:43.8]} 30... Kh8 {[%clk 0:02:41.2]}
31. Qf3 {[%clk 0:01:36.7]} 31... Bc6 {[%clk 0:02:36.4]} 32. Qg3 {[%clk 0:01:34]}
32... Rf7 {[%clk 0:02:28.8]} 33. Bg6 {[%clk 0:01:25.1]} 33... Rd7 {[%clk
0:02:19.5]} 34. Be3 {[%clk 0:01:13.4]} 34... Qb5 {[%clk 0:02:10.1]} 35. Nd4
{[%clk 0:01:02.6]} 35... Qa6 {[%clk 0:01:50.9]} 36. Nxc6 {[%clk 0:00:59.3]}
36... Qxc6 {[%clk 0:01:48.4]} 37. Rad1 {[%clk 0:00:41.4]} 37... Rxd1 {[%clk
0:01:24.3]} 38. Rxd1 {[%clk 0:00:39.1]} 38... c2 {[%clk 0:01:13.9]} 39. Rd6
{[%clk 0:00:30.9]} 39... Qc8 {[%clk 0:01:00.5]} 40. Bxh6 {[%clk 0:00:15]} 40...
gxh6 {[%clk 0:00:51.3]} 41. Rxf6 {[%clk 0:00:10.6]} 41... c1=Q {[%clk
0:00:41.7]} 42. Qf3 {[%clk 0:00:02.1]} 42... Q1c2+ {[%clk 0:00:39.2]} 0-1